[Event "Titled Tuesday Blitz February 15 Early 2022"]
[White "Samadov, Read"]
[Black "Garagulya, Konstantin"]
[WhiteFideId "13417444"]
[BlackFideId "4128931"]
[WhiteElo "2084"]
[BlackElo "2329"]
[Result "0-1"]
[Round "01"]
[TimeControl "180+1"]
[Date "2022.02.15"]
[WhiteClock "0:00:02"]
[BlackClock "0:00:06"]

1. d4 {[%clk 0:03:00]}  d5 {[%clk 0:02:59]} 2. c4 {[%clk 0:03:01]}  dxc4 {[%clk 0:02:59]} 3. e3 {[%clk 0:03:00]}  Nf6 {[%clk 0:03:00]} 4. Bxc4 {[%clk 0:03:01]}  e6 {[%clk 0:03:01]} 5. Nf3 {[%clk 0:03:01]}  a6 {[%clk 0:03:01]} 6. a4 {[%clk 0:03:00]}  c5 {[%clk 0:03:02]} 7. O-O {[%clk 0:03:00]}  Nc6 {[%clk 0:03:02]} 8. Nc3 {[%clk 0:02:59]}  cxd4 {[%clk 0:03:02]} 9. exd4 {[%clk 0:02:59]}  Be7 {[%clk 0:03:03]} 10. Re1 {[%clk 0:02:59]}  O-O {[%clk 0:03:03]} 11. Bg5 {[%clk 0:02:58]}  Nb4 {[%clk 0:02:53]} 12. Ne5 {[%clk 0:02:55]}  Nbd5 {[%clk 0:02:46]} 13. Nxd5 {[%clk 0:02:42]}  Nxd5 {[%clk 0:02:44]} 14. Bxe7 {[%clk 0:02:42]}  Nxe7 {[%clk 0:02:44]} 15. Ra3 {[%clk 0:02:27]}  Bd7 {[%clk 0:02:42]} 16. Qg4 {[%clk 0:02:20]}  Bc6 {[%clk 0:02:09]} 17. Rh3 {[%clk 0:01:49]}  Nd5 {[%clk 0:01:20]} 18. Bd3 {[%clk 0:01:13]}  g6 {[%clk 0:01:17]} 19. Bxg6 {[%clk 0:00:50]}  fxg6 {[%clk 0:01:14]} 20. Nxg6 {[%clk 0:00:50]}  Rf7 {[%clk 0:01:00]} 21. Ne5+ {[%clk 0:00:42]}  Rg7 {[%clk 0:00:59]} 22. Qxe6+ {[%clk 0:00:41]}  Kh8 {[%clk 0:00:53]} 23. Nf7+ {[%clk 0:00:37]}  Rxf7 {[%clk 0:00:53]} 24. Qxf7 {[%clk 0:00:38]}  Qg8 {[%clk 0:00:51]} 25. Qxg8+ {[%clk 0:00:30]}  Kxg8 {[%clk 0:00:52]} 26. a5 {[%clk 0:00:27]}  Rd8 {[%clk 0:00:46]} 27. Rg3+ {[%clk 0:00:27]}  Kf7 {[%clk 0:00:45]} 28. h4 {[%clk 0:00:26]}  Nf4 {[%clk 0:00:39]} 29. Re5 {[%clk 0:00:23]}  Rxd4 {[%clk 0:00:32]} 30. Kh2 {[%clk 0:00:20]}  Kf6 {[%clk 0:00:25]} 31. Reg5 {[%clk 0:00:13]}  Ne6 {[%clk 0:00:22]} 32. Rg8 {[%clk 0:00:11]}  Rxh4+ {[%clk 0:00:21]} 33. Kg1 {[%clk 0:00:11]}  Ra4 {[%clk 0:00:17]} 34. Re3 {[%clk 0:00:10]}  Rxa5 {[%clk 0:00:12]} 35. Rh8 {[%clk 0:00:11]}  Rh5 {[%clk 0:00:10]} 36. f3 {[%clk 0:00:09]}  Kf7 {[%clk 0:00:08]} 37. Rb8 {[%clk 0:00:08]}  Nf4 {[%clk 0:00:08]} 38. Kf2 {[%clk 0:00:08]}  Rg5 {[%clk 0:00:07]} 39. g3 {[%clk 0:00:08]}  Nd5 {[%clk 0:00:08]} 40. Rd3 {[%clk 0:00:07]}  Rh5 {[%clk 0:00:08]} 41. g4 {[%clk 0:00:07]}  Rh2+ {[%clk 0:00:08]} 42. Kg3 {[%clk 0:00:08]}  Rxb2 {[%clk 0:00:09]} 43. f4 {[%clk 0:00:08]}  Rb4 {[%clk 0:00:08]} 44. f5 {[%clk 0:00:07]}  Nf6 {[%clk 0:00:08]} 45. g5 {[%clk 0:00:06]}  Rg4+ {[%clk 0:00:09]} 46. Kh3 {[%clk 0:00:06]}  Rxg5 {[%clk 0:00:09]} 47. Rh8 {[%clk 0:00:05]}  Rxf5 {[%clk 0:00:09]} 48. Rdd8 {[%clk 0:00:06]}  Rf3+ {[%clk 0:00:08]} 49. Kh4 {[%clk 0:00:06]}  Kg6 {[%clk 0:00:08]} 50. Rdf8 {[%clk 0:00:06]}  Kf5 {[%clk 0:00:08]} 51. Rxh7 {[%clk 0:00:05]}  Rf4+ {[%clk 0:00:08]} 52. Kg3 {[%clk 0:00:05]}  Rf3+ {[%clk 0:00:09]} 53. Kh4 {[%clk 0:00:05]}  a5 {[%clk 0:00:08]} 54. Rhf7 {[%clk 0:00:05]}  Ke6 {[%clk 0:00:08]} 55. Rc7 {[%clk 0:00:03]}  a4 {[%clk 0:00:08]} 56. Ra8 {[%clk 0:00:03]}  Kd6 {[%clk 0:00:06]} 57. Rf7 {[%clk 0:00:03]}  a3 {[%clk 0:00:05]} 58. Ra5 {[%clk 0:00:01]}  Ke6 {[%clk 0:00:05]} 59. Rf8 {[%clk 0:00:02]}  Rf2 {[%clk 0:00:04]} 60. Rxa3 {[%clk 0:00:01]}  Rh2+ {[%clk 0:00:04]} 61. Kg3 {[%clk 0:00:02]}  Rg2+ {[%clk 0:00:05]} 62. Kh4 {[%clk 0:00:02]}  Ne4 {[%clk 0:00:04]} 63. Rf4 {[%clk 0:00:01]}  Ke5 {[%clk 0:00:04]} 64. Rg4 {[%clk 0:00:02]}  Rh2+ {[%clk 0:00:04]} 65. Rh3 {[%clk 0:00:01]}  Rxh3+ {[%clk 0:00:04]} 66. Kxh3 {[%clk 0:00:02]}  Nf2+ {[%clk 0:00:05]} 67. Kg3 {[%clk 0:00:02]}  Nxg4 {[%clk 0:00:06]} 0-1


[Site "https://www.chess.com"]

[Event "Titled Tuesday Blitz February 15 Early 2022"]
[White "Sarkar, Justin"]
[Black "Agibileg, Uurtsaikh"]
[WhiteFideId "2010011"]
[BlackFideId "4901606"]
[WhiteElo "2038"]
[BlackElo "2205"]
[Result "0-1"]
[Round "01"]
[TimeControl "180+1"]
[Date "2022.02.15"]
[WhiteClock "0:00:01"]
[BlackClock "0:01:18"]

1. e4 {[%clk 0:02:47]}  c5 {[%clk 0:02:59]} 2. Nf3 {[%clk 0:02:47]}  e6 {[%clk 0:03:00]} 3. d4 {[%clk 0:02:45]}  cxd4 {[%clk 0:03:01]} 4. Nxd4 {[%clk 0:02:45]}  Nc6 {[%clk 0:03:01]} 5. Nb5 {[%clk 0:02:40]}  d6 {[%clk 0:02:57]} 6. c4 {[%clk 0:02:39]}  Nf6 {[%clk 0:02:56]} 7. N5c3 {[%clk 0:02:35]}  Be7 {[%clk 0:02:56]} 8. Be2 {[%clk 0:02:34]}  O-O {[%clk 0:02:57]} 9. O-O {[%clk 0:02:33]}  b6 {[%clk 0:02:57]} 10. Be3 {[%clk 0:02:28]}  Bb7 {[%clk 0:02:57]} 11. Nd2 {[%clk 0:02:20]}  a6 {[%clk 0:02:58]} 12. f4 {[%clk 0:02:13]}  Rc8 {[%clk 0:02:56]} 13. g4 {[%clk 0:02:02]}  Nd7 {[%clk 0:02:48]} 14. g5 {[%clk 0:01:53]}  Nc5 {[%clk 0:02:34]} 15. h4 {[%clk 0:01:43]}  Kh8 {[%clk 0:02:11]} 16. Rb1 {[%clk 0:01:38]}  f6 {[%clk 0:02:06]} 17. b4 {[%clk 0:01:31]}  Nd7 {[%clk 0:02:05]} 18. Bg4 {[%clk 0:01:26]}  f5 {[%clk 0:01:53]} 19. exf5 {[%clk 0:01:21]}  exf5 {[%clk 0:01:54]} 20. Bf3 {[%clk 0:01:18]}  b5 {[%clk 0:01:48]} 21. cxb5 {[%clk 0:01:09]}  axb5 {[%clk 0:01:36]} 22. Nxb5 {[%clk 0:01:04]}  d5 {[%clk 0:01:34]} 23. Bxd5 {[%clk 0:00:50]}  Nde5 {[%clk 0:01:29]} 24. Nc4 {[%clk 0:00:13]}  Nxc4 {[%clk 0:01:22]} 25. Bxc4 {[%clk 0:00:12]}  Nxb4 {[%clk 0:01:22]} 26. Qxd8 {[%clk 0:00:08]}  Rfxd8 {[%clk 0:01:23]} 27. Be6 {[%clk 0:00:04]}  Rc2 {[%clk 0:01:23]} 28. Nd4 {[%clk 0:00:02]}  Rg2+ {[%clk 0:01:22]} 29. Kh1 {[%clk 0:00:02]}  Re2+ {[%clk 0:01:18]} 30. Kg1 {[%clk 0:00:01]}  Rxe3 {[%clk 0:01:18]} 0-1


[Site "https://www.chess.com"]

[Event "Titled Tuesday Blitz February 15 Early 2022"]
[White "Selbes, Tarik"]
[Black "Van Foreest, Jorden"]
[WhiteFideId "6302513"]
[BlackFideId "1039784"]
[WhiteElo "2290"]
[BlackElo "2609"]
[Result "0-1"]
[Round "01"]
[TimeControl "180+1"]
[Date "2022.02.15"]
[WhiteClock "0:00:16"]
[BlackClock "0:00:15"]

1. Nf3 {[%clk 0:02:58]}  d5 {[%clk 0:02:57]} 2. g3 {[%clk 0:02:58]}  a5 {[%clk 0:02:52]} 3. Bg2 {[%clk 0:02:58]}  a4 {[%clk 0:02:51]} 4. O-O {[%clk 0:02:59]}  g6 {[%clk 0:02:51]} 5. d3 {[%clk 0:02:59]}  Bg7 {[%clk 0:02:50]} 6. Nbd2 {[%clk 0:02:58]}  a3 {[%clk 0:02:50]} 7. Rb1 {[%clk 0:02:57]}  axb2 {[%clk 0:02:50]} 8. Bxb2 {[%clk 0:02:58]}  Nf6 {[%clk 0:02:50]} 9. c4 {[%clk 0:02:57]}  c6 {[%clk 0:02:42]} 10. Qb3 {[%clk 0:02:54]}  O-O {[%clk 0:02:39]} 11. cxd5 {[%clk 0:02:54]}  cxd5 {[%clk 0:02:39]} 12. Rfc1 {[%clk 0:02:54]}  Nc6 {[%clk 0:02:38]} 13. Ne5 {[%clk 0:02:54]}  Na5 {[%clk 0:02:31]} 14. Qb5 {[%clk 0:02:49]}  Be6 {[%clk 0:02:17]} 15. Ba1 {[%clk 0:02:40]}  Qd6 {[%clk 0:02:07]} 16. Qb6 {[%clk 0:02:31]}  Qxb6 {[%clk 0:01:53]} 17. Rxb6 {[%clk 0:02:30]}  Rfc8 {[%clk 0:01:54]} 18. Rbb1 {[%clk 0:02:17]}  Nc6 {[%clk 0:01:54]} 19. Nxc6 {[%clk 0:01:44]}  Rxc6 {[%clk 0:01:49]} 20. Nf3 {[%clk 0:01:19]}  Rxc1+ {[%clk 0:01:39]} 21. Rxc1 {[%clk 0:01:19]}  Rxa2 {[%clk 0:01:40]} 22. Bd4 {[%clk 0:01:10]}  Rxe2 {[%clk 0:01:37]} 23. Rc7 {[%clk 0:01:06]}  Ng4 {[%clk 0:01:16]} 24. h3 {[%clk 0:01:01]}  Bxd4 {[%clk 0:00:50]} 25. Nxd4 {[%clk 0:00:59]}  Re1+ {[%clk 0:00:50]} 26. Bf1 {[%clk 0:00:56]}  Ne5 {[%clk 0:00:51]} 27. Nxe6 {[%clk 0:00:55]}  fxe6 {[%clk 0:00:50]} 28. Kg2 {[%clk 0:00:53]}  Kf7 {[%clk 0:00:32]} 29. Rxb7 {[%clk 0:00:52]}  Rd1 {[%clk 0:00:28]} 30. Rb3 {[%clk 0:00:49]}  Rd2 {[%clk 0:00:28]} 31. Ra3 {[%clk 0:00:27]}  g5 {[%clk 0:00:28]} 32. Kg1 {[%clk 0:00:24]}  Nf3+ {[%clk 0:00:27]} 33. Kg2 {[%clk 0:00:24]}  Ne1+ {[%clk 0:00:28]} 34. Kg1 {[%clk 0:00:24]}  h5 {[%clk 0:00:27]} 35. Rb3 {[%clk 0:00:14]}  Kf6 {[%clk 0:00:26]} 36. Ra3 {[%clk 0:00:13]}  h4 {[%clk 0:00:26]} 37. gxh4 {[%clk 0:00:13]}  gxh4 {[%clk 0:00:27]} 38. Ra4 {[%clk 0:00:14]}  e5 {[%clk 0:00:23]} 39. Bg2 {[%clk 0:00:13]}  Nxg2 {[%clk 0:00:13]} 40. Kxg2 {[%clk 0:00:14]}  d4 {[%clk 0:00:12]} 41. Ra3 {[%clk 0:00:14]}  Kf5 {[%clk 0:00:12]} 42. Kf3 {[%clk 0:00:14]}  Rxd3+ {[%clk 0:00:12]} 43. Rxd3 {[%clk 0:00:14]}  e4+ {[%clk 0:00:13]} 44. Ke2 {[%clk 0:00:15]}  exd3+ {[%clk 0:00:14]} 45. Kxd3 {[%clk 0:00:16]}  e5 {[%clk 0:00:14]} 46. f3 {[%clk 0:00:16]}  Kf4 {[%clk 0:00:14]} 47. Ke2 {[%clk 0:00:16]}  Kg3 {[%clk 0:00:15]} 0-1


[Site "https://www.chess.com"]

[Event "Titled Tuesday Blitz February 15 Early 2022"]
[White "Shevtchenko, Olesya"]
[Black "Khripachenko, Alexander"]
[WhiteFideId "24131890"]
[BlackFideId "54184975"]
[WhiteElo "2003"]
[BlackElo "2177"]
[Result "1-0"]
[Round "01"]
[TimeControl "180+1"]
[Date "2022.02.15"]
[WhiteClock "0:00:54"]
[BlackClock "0:00:09"]

1. e4 {[%clk 0:03:00]}  c5 {[%clk 0:02:57]} 2. Nf3 {[%clk 0:02:59]}  Nf6 {[%clk 0:02:57]} 3. e5 {[%clk 0:02:55]}  Nd5 {[%clk 0:02:57]} 4. g3 {[%clk 0:02:55]}  d6 {[%clk 0:02:57]} 5. d4 {[%clk 0:02:55]}  cxd4 {[%clk 0:02:55]} 6. Qxd4 {[%clk 0:02:54]}  Nb6 {[%clk 0:02:54]} 7. exd6 {[%clk 0:02:53]}  exd6 {[%clk 0:02:19]} 8. Bg2 {[%clk 0:02:49]}  Nc6 {[%clk 0:02:19]} 9. Qd1 {[%clk 0:02:46]}  Be7 {[%clk 0:02:18]} 10. O-O {[%clk 0:02:47]}  Bg4 {[%clk 0:02:18]} 11. a4 {[%clk 0:02:33]}  a5 {[%clk 0:02:08]} 12. Nc3 {[%clk 0:02:30]}  O-O {[%clk 0:02:08]} 13. Nb5 {[%clk 0:02:30]}  d5 {[%clk 0:02:07]} 14. Bf4 {[%clk 0:02:28]}  Rc8 {[%clk 0:02:07]} 15. h3 {[%clk 0:02:22]}  Bh5 {[%clk 0:02:06]} 16. g4 {[%clk 0:02:22]}  Bg6 {[%clk 0:02:06]} 17. c3 {[%clk 0:02:22]}  Nc4 {[%clk 0:02:03]} 18. b3 {[%clk 0:02:11]}  Nb2 {[%clk 0:02:04]} 19. Qd2 {[%clk 0:02:06]}  Nd3 {[%clk 0:02:03]} 20. Bg3 {[%clk 0:02:06]}  Nc5 {[%clk 0:02:00]} 21. Nfd4 {[%clk 0:01:59]}  Bf6 {[%clk 0:01:56]} 22. Rad1 {[%clk 0:01:37]}  Nxd4 {[%clk 0:01:55]} 23. Nxd4 {[%clk 0:01:38]}  Qb6 {[%clk 0:01:50]} 24. Nb5 {[%clk 0:01:34]}  Rfd8 {[%clk 0:01:43]} 25. Bxd5 {[%clk 0:01:33]}  Be4 {[%clk 0:01:08]} 26. c4 {[%clk 0:01:32]}  Bxd5 {[%clk 0:01:08]} 27. cxd5 {[%clk 0:01:32]}  Nxb3 {[%clk 0:01:09]} 28. Qf4 {[%clk 0:01:24]}  h6 {[%clk 0:00:59]} 29. h4 {[%clk 0:01:22]}  Re8 {[%clk 0:00:43]} 30. Nd6 {[%clk 0:01:16]}  Nd4 {[%clk 0:00:22]} 31. Nxc8 {[%clk 0:01:11]}  Rxc8 {[%clk 0:00:22]} 32. Rfe1 {[%clk 0:01:08]}  Rc3 {[%clk 0:00:21]} 33. Re3 {[%clk 0:01:04]}  Qb3 {[%clk 0:00:14]} 34. Rxd4 {[%clk 0:00:58]}  Rxe3 {[%clk 0:00:11]} 35. Qxe3 {[%clk 0:00:55]}  Qb1+ {[%clk 0:00:09]} 36. Kg2 {[%clk 0:00:54]} 1-0


[Site "https://www.chess.com"]

[Event "Titled Tuesday Blitz February 15 Early 2022"]
[White "Shvedova, Alexandra"]
[Black "Rostovtsev, Dmitry"]
[WhiteFideId "54154782"]
[BlackFideId "34278320"]
[WhiteElo "1920"]
[BlackElo "2218"]
[Result "0-1"]
[Round "01"]
[TimeControl "180+1"]
[Date "2022.02.15"]
[WhiteClock "0:00:08"]
[BlackClock "0:00:42"]

1. e4 {[%clk 0:03:00]}  c5 {[%clk 0:02:56]} 2. Ne2 {[%clk 0:03:00]}  Nc6 {[%clk 0:02:54]} 3. d4 {[%clk 0:03:00]}  cxd4 {[%clk 0:02:55]} 4. Nxd4 {[%clk 0:03:00]}  Nf6 {[%clk 0:02:56]} 5. Nc3 {[%clk 0:03:00]}  d6 {[%clk 0:02:55]} 6. Bg5 {[%clk 0:03:01]}  e6 {[%clk 0:02:56]} 7. Qd2 {[%clk 0:02:58]}  a6 {[%clk 0:02:56]} 8. O-O-O {[%clk 0:02:57]}  Bd7 {[%clk 0:02:56]} 9. f4 {[%clk 0:02:40]}  Be7 {[%clk 0:02:53]} 10. Nf3 {[%clk 0:02:17]}  b5 {[%clk 0:02:52]} 11. Bxf6 {[%clk 0:02:14]}  gxf6 {[%clk 0:02:48]} 12. f5 {[%clk 0:02:09]}  Qb6 {[%clk 0:02:44]} 13. Ne2 {[%clk 0:01:43]}  O-O-O {[%clk 0:02:42]} 14. Ned4 {[%clk 0:01:42]}  Kb8 {[%clk 0:02:41]} 15. g3 {[%clk 0:01:27]}  Rc8 {[%clk 0:02:27]} 16. Kb1 {[%clk 0:01:26]}  Nxd4 {[%clk 0:02:14]} 17. Nxd4 {[%clk 0:01:27]}  Rc5 {[%clk 0:02:11]} 18. fxe6 {[%clk 0:01:23]}  fxe6 {[%clk 0:02:12]} 19. Bh3 {[%clk 0:01:22]}  Re5 {[%clk 0:02:12]} 20. Qf4 {[%clk 0:01:09]}  Qb7 {[%clk 0:02:07]} 21. Rhe1 {[%clk 0:01:00]}  Rc8 {[%clk 0:02:08]} 22. c3 {[%clk 0:00:55]}  b4 {[%clk 0:02:07]} 23. cxb4 {[%clk 0:00:51]}  Qxb4 {[%clk 0:02:06]} 24. Qd2 {[%clk 0:00:44]}  Qb6 {[%clk 0:01:55]} 25. Nb3 {[%clk 0:00:40]}  Bc6 {[%clk 0:01:28]} 26. Bg2 {[%clk 0:00:31]}  a5 {[%clk 0:01:29]} 27. Qd4 {[%clk 0:00:29]}  Qxd4 {[%clk 0:01:27]} 28. Nxd4 {[%clk 0:00:29]}  Bd7 {[%clk 0:01:27]} 29. Nf3 {[%clk 0:00:28]}  Rec5 {[%clk 0:01:26]} 30. Nd4 {[%clk 0:00:26]}  a4 {[%clk 0:01:23]} 31. Rc1 {[%clk 0:00:26]}  Rc4 {[%clk 0:01:21]} 32. Ne2 {[%clk 0:00:20]}  Bf8 {[%clk 0:01:13]} 33. Nc3 {[%clk 0:00:19]}  a3 {[%clk 0:01:11]} 34. Bf1 {[%clk 0:00:17]}  axb2 {[%clk 0:01:11]} 35. Kxb2 {[%clk 0:00:16]}  Rb4+ {[%clk 0:01:12]} 36. Kc2 {[%clk 0:00:16]}  d5 {[%clk 0:01:01]} 37. exd5 {[%clk 0:00:13]}  exd5 {[%clk 0:01:02]} 38. Kd3 {[%clk 0:00:12]}  Bf5+ {[%clk 0:00:58]} 39. Ke2 {[%clk 0:00:12]}  d4 {[%clk 0:00:56]} 40. Nd5 {[%clk 0:00:11]}  Rb2+ {[%clk 0:00:52]} 41. Kf3 {[%clk 0:00:11]}  Rd8 {[%clk 0:00:48]} 42. Nxf6 {[%clk 0:00:10]}  Bh6 {[%clk 0:00:48]} 43. Rcd1 {[%clk 0:00:08]}  Rf8 {[%clk 0:00:48]} 44. Ne4 {[%clk 0:00:08]}  Be6+ {[%clk 0:00:42]} 0-1


[Site "https://www.chess.com"]

[Event "Titled Tuesday Blitz February 15 Early 2022"]
[White "Singh, Ojasva"]
[Black "Ceres, Dragos"]
[WhiteFideId "25681958"]
[BlackFideId "13905864"]
[WhiteElo "1741"]
[BlackElo "2072"]
[Result "0-1"]
[Round "01"]
[TimeControl "180+1"]
[Date "2022.02.15"]
[WhiteClock "0:00:04"]
[BlackClock "0:00:31"]

1. e4 {[%clk 0:03:00]}  e5 {[%clk 0:03:00]} 2. Nf3 {[%clk 0:03:00]}  Nc6 {[%clk 0:03:00]} 3. Bc4 {[%clk 0:03:00]}  Nf6 {[%clk 0:03:01]} 4. d3 {[%clk 0:02:59]}  h6 {[%clk 0:03:01]} 5. c3 {[%clk 0:02:59]}  d6 {[%clk 0:03:01]} 6. O-O {[%clk 0:02:57]}  g5 {[%clk 0:03:01]} 7. Nbd2 {[%clk 0:02:56]}  Bg7 {[%clk 0:03:01]} 8. Re1 {[%clk 0:02:55]}  g4 {[%clk 0:03:01]} 9. Nh4 {[%clk 0:02:55]}  Nxe4 {[%clk 0:03:02]} 10. dxe4 {[%clk 0:02:51]}  Qxh4 {[%clk 0:03:01]} 11. Nf1 {[%clk 0:02:51]}  O-O {[%clk 0:02:58]} 12. Ng3 {[%clk 0:02:47]}  Ne7 {[%clk 0:02:56]} 13. Be3 {[%clk 0:02:32]}  Kh7 {[%clk 0:02:54]} 14. Qc2 {[%clk 0:02:15]}  Qf6 {[%clk 0:02:28]} 15. Rad1 {[%clk 0:01:47]}  Qg6 {[%clk 0:02:17]} 16. Bd3 {[%clk 0:01:35]}  h5 {[%clk 0:02:07]} 17. c4 {[%clk 0:01:01]}  b6 {[%clk 0:01:59]} 18. b4 {[%clk 0:00:52]}  h4 {[%clk 0:01:46]} 19. Nf1 {[%clk 0:00:16]}  f5 {[%clk 0:01:39]} 20. exf5 {[%clk 0:00:15]}  Bxf5 {[%clk 0:01:39]} 21. c5 {[%clk 0:00:14]}  bxc5 {[%clk 0:01:34]} 22. bxc5 {[%clk 0:00:14]}  d5 {[%clk 0:01:34]} 23. Bxf5 {[%clk 0:00:13]}  Rxf5 {[%clk 0:01:29]} 24. c6 {[%clk 0:00:09]}  Rf6 {[%clk 0:01:15]} 25. Qxg6+ {[%clk 0:00:09]}  Kxg6 {[%clk 0:01:16]} 26. Bc5 {[%clk 0:00:09]}  Nxc6 {[%clk 0:01:11]} 27. Rxd5 {[%clk 0:00:09]}  Bf8 {[%clk 0:01:05]} 28. Ne3 {[%clk 0:00:07]}  g3 {[%clk 0:01:01]} 29. hxg3 {[%clk 0:00:06]}  hxg3 {[%clk 0:01:02]} 30. fxg3 {[%clk 0:00:07]}  Re6 {[%clk 0:00:53]} 31. Nc4 {[%clk 0:00:05]}  e4 {[%clk 0:00:50]} 32. Bxf8 {[%clk 0:00:04]}  Rxf8 {[%clk 0:00:50]} 33. Ne3 {[%clk 0:00:04]}  Rd8 {[%clk 0:00:46]} 34. Rxd8 {[%clk 0:00:04]}  Nxd8 {[%clk 0:00:47]} 35. Rc1 {[%clk 0:00:03]}  Nc6 {[%clk 0:00:47]} 36. Rc5 {[%clk 0:00:03]}  Kf7 {[%clk 0:00:41]} 37. g4 {[%clk 0:00:03]}  Ke7 {[%clk 0:00:35]} 38. Nf5+ {[%clk 0:00:01]}  Kd7 {[%clk 0:00:35]} 39. Rc2 {[%clk 0:00:01]}  Ne5 {[%clk 0:00:32]} 40. Kf2 {[%clk 0:00:02]}  Nxg4+ {[%clk 0:00:33]} 41. Kg3 {[%clk 0:00:03]}  Nf6 {[%clk 0:00:33]} 42. Kf4 {[%clk 0:00:03]}  Nd5+ {[%clk 0:00:32]} 43. Kg5 {[%clk 0:00:03]}  e3 {[%clk 0:00:33]} 44. Rc5 {[%clk 0:00:03]}  c6 {[%clk 0:00:32]} 45. Rc1 {[%clk 0:00:03]}  e2 {[%clk 0:00:32]} 46. Re1 {[%clk 0:00:04]}  Nb4 {[%clk 0:00:32]} 47. Nd4 {[%clk 0:00:04]}  Re5+ {[%clk 0:00:31]} 48. Kf4 {[%clk 0:00:04]}  Nd3+ {[%clk 0:00:31]} 0-1


[Site "https://www.chess.com"]

[Event "Titled Tuesday Blitz February 15 Early 2022"]
[White "Sinitsina, Anastassia"]
[Black "Moskalenko, Alexander"]
[WhiteFideId "4504640"]
[BlackFideId "4155351"]
[WhiteElo "2144"]
[BlackElo "2515"]
[Result "1-0"]
[Round "01"]
[TimeControl "180+1"]
[Date "2022.02.15"]
[WhiteClock "0:00:41"]
[BlackClock "0:01:23"]

1. Nf3 {[%clk 0:03:00]}  c5 {[%clk 0:02:58]} 2. g3 {[%clk 0:02:57]}  b5 {[%clk 0:02:56]} 3. Bg2 {[%clk 0:02:57]}  Bb7 {[%clk 0:02:56]} 4. O-O {[%clk 0:02:57]}  Nf6 {[%clk 0:02:56]} 5. d3 {[%clk 0:02:57]}  d5 {[%clk 0:02:57]} 6. Nbd2 {[%clk 0:02:57]}  e6 {[%clk 0:02:56]} 7. e4 {[%clk 0:02:57]}  Be7 {[%clk 0:02:56]} 8. Re1 {[%clk 0:02:57]}  dxe4 {[%clk 0:02:55]} 9. Ng5 {[%clk 0:02:56]}  Nbd7 {[%clk 0:02:53]} 10. Ngxe4 {[%clk 0:02:55]}  Qb6 {[%clk 0:02:52]} 11. Qe2 {[%clk 0:02:53]}  O-O {[%clk 0:02:52]} 12. c3 {[%clk 0:02:49]}  Rfd8 {[%clk 0:02:51]} 13. h4 {[%clk 0:02:45]}  Rac8 {[%clk 0:02:49]} 14. Nf1 {[%clk 0:02:44]}  a5 {[%clk 0:02:48]} 15. Nh2 {[%clk 0:02:42]}  b4 {[%clk 0:02:47]} 16. Bd2 {[%clk 0:02:35]}  Ba6 {[%clk 0:02:43]} 17. c4 {[%clk 0:02:05]}  Nxe4 {[%clk 0:02:36]} 18. Bxe4 {[%clk 0:02:00]}  Nf6 {[%clk 0:02:33]} 19. Bg2 {[%clk 0:01:58]}  Bb7 {[%clk 0:02:31]} 20. Bxb7 {[%clk 0:01:52]}  Qxb7 {[%clk 0:02:32]} 21. Bf4 {[%clk 0:01:51]}  Rd7 {[%clk 0:02:12]} 22. Rad1 {[%clk 0:01:50]}  Rcd8 {[%clk 0:02:07]} 23. Be5 {[%clk 0:01:48]}  a4 {[%clk 0:02:07]} 24. Rd2 {[%clk 0:01:41]}  Ne8 {[%clk 0:02:05]} 25. Red1 {[%clk 0:01:40]}  Bf6 {[%clk 0:02:05]} 26. Ng4 {[%clk 0:01:37]}  Bxe5 {[%clk 0:02:04]} 27. Nxe5 {[%clk 0:01:37]}  Rd6 {[%clk 0:02:03]} 28. Qe3 {[%clk 0:01:34]}  f6 {[%clk 0:02:02]} 29. Ng4 {[%clk 0:01:31]}  Rd4 {[%clk 0:01:49]} 30. Qxe6+ {[%clk 0:01:28]}  Qf7 {[%clk 0:01:49]} 31. Qe2 {[%clk 0:01:16]}  Nc7 {[%clk 0:01:41]} 32. Nh2 {[%clk 0:01:11]}  R4d6 {[%clk 0:01:40]} 33. Qe3 {[%clk 0:01:05]}  Ne6 {[%clk 0:01:40]} 34. Nf3 {[%clk 0:01:02]}  Nd4 {[%clk 0:01:36]} 35. Nxd4 {[%clk 0:01:02]}  Rxd4 {[%clk 0:01:37]} 36. Kg2 {[%clk 0:00:59]}  h5 {[%clk 0:01:36]} 37. Qf3 {[%clk 0:00:58]}  Qg6 {[%clk 0:01:35]} 38. Kh2 {[%clk 0:00:56]}  Kh7 {[%clk 0:01:34]} 39. Qc6 {[%clk 0:00:55]}  Qf5 {[%clk 0:01:30]} 40. Qxa4 {[%clk 0:00:52]}  Rxd3 {[%clk 0:01:31]} 41. Qc2 {[%clk 0:00:45]}  b3 {[%clk 0:01:29]} 42. axb3 {[%clk 0:00:43]}  Rxd2 {[%clk 0:01:22]} 43. Qxf5+ {[%clk 0:00:43]}  g6 {[%clk 0:01:22]} 44. Rxd2 {[%clk 0:00:41]}  Rxd2 {[%clk 0:01:23]} 45. Qxf6 {[%clk 0:00:41]} 1-0


[Site "https://www.chess.com"]

[Event "Titled Tuesday Blitz February 15 Early 2022"]
[White "Sjugirov, Sanan"]
[Black "Batsiashvili, Nino"]
[WhiteFideId "4189302"]
[BlackFideId "13602993"]
[WhiteElo "2602"]
[BlackElo "2230"]
[Result "1-0"]
[Round "01"]
[TimeControl "180+1"]
[Date "2022.02.15"]
[WhiteClock "0:01:29"]
[BlackClock "0:00:18"]

1. e4 {[%clk 0:03:00]}  e5 {[%clk 0:02:59]} 2. Nf3 {[%clk 0:03:00]}  Nc6 {[%clk 0:02:59]} 3. Bc4 {[%clk 0:02:56]}  Nf6 {[%clk 0:02:53]} 4. d3 {[%clk 0:02:55]}  Bc5 {[%clk 0:02:52]} 5. c3 {[%clk 0:02:54]}  a6 {[%clk 0:02:51]} 6. O-O {[%clk 0:02:48]}  Ba7 {[%clk 0:02:51]} 7. a4 {[%clk 0:02:45]}  d6 {[%clk 0:02:50]} 8. Bg5 {[%clk 0:02:38]}  h6 {[%clk 0:02:49]} 9. Bh4 {[%clk 0:02:38]}  g5 {[%clk 0:02:49]} 10. Bg3 {[%clk 0:02:38]}  Qe7 {[%clk 0:02:47]} 11. Nbd2 {[%clk 0:02:33]}  Rg8 {[%clk 0:02:31]} 12. b4 {[%clk 0:02:17]}  h5 {[%clk 0:02:29]} 13. h4 {[%clk 0:02:14]}  Ng4 {[%clk 0:01:59]} 14. b5 {[%clk 0:02:00]}  Nd8 {[%clk 0:01:50]} 15. d4 {[%clk 0:01:59]}  Rg7 {[%clk 0:01:30]} 16. Nxg5 {[%clk 0:01:54]}  f6 {[%clk 0:01:27]} 17. Ngf3 {[%clk 0:01:51]}  Ne6 {[%clk 0:01:16]} 18. Re1 {[%clk 0:01:45]}  exd4 {[%clk 0:01:09]} 19. Bxe6 {[%clk 0:01:41]}  Bxe6 {[%clk 0:01:10]} 20. Nxd4 {[%clk 0:01:41]}  Bxd4 {[%clk 0:00:48]} 21. cxd4 {[%clk 0:01:40]}  a5 {[%clk 0:00:36]} 22. Rc1 {[%clk 0:01:37]}  O-O-O {[%clk 0:00:20]} 23. d5 {[%clk 0:01:34]}  Bg8 {[%clk 0:00:18]} 24. b6 {[%clk 0:01:34]}  Qe8 {[%clk 0:00:18]} 25. Nc4 {[%clk 0:01:31]}  Rdd7 {[%clk 0:00:17]} 26. bxc7 {[%clk 0:01:30]}  Rxc7 {[%clk 0:00:18]} 27. Nxd6+ {[%clk 0:01:29]} 1-0


[Site "https://www.chess.com"]